Cogmind - Beta 15 @@@ ROGUE MODE // 2025.06.28 @ 16:03:41 Player: f3-rnm Result: Destroyed by G-73 Enforcer with Heavy Laser Performance ------------- Evolutions (6) 3000 Regions Visited (17) 3400 Robots Destroyed (116) 580 Value Destroyed (4980) 4980 Prototype IDs (46) 920 Alien Tech Used (0) 0 Bonus (6528) 6528 TOTAL SCORE: 19408 Bonus ------- High Alert Combat Kills 699 Follower Combat Kills 4136 Network Hubs Disabled 200 Registered with UFD 300 Met Optimus in HQ 500 Met Data Miner 300 Built Enhanced Grunts 300 Met R17 at Cetus 500 Friendly Fire -407 Cogmind --------- Core Integrity 0/1150 Matter 16/300 Energy 99/100 System Corruption 24% Temperature Cool (27) Movement Core (50) Location -4/Factory Parts ------- > --- POWER (2) -------- (None) > --- PROPULSION (2) --- (None) > --- UTILITY (11) ----- (None) > --- WEAPON (4) ------- (None) > --- INVENTORY (5) ---- Scrap Suit Experimental EM Shield Railgun Tiamat Missile Launcher Peak State ------------ > --- POWER ------------ Quantum Reactor Quantum Reactor > --- PROPULSION ------- Overtuned Huge Scrapsphere > --- UTILITY ---------- Scrap Suit Advanced Power Amplifier Advanced Heat Sink Advanced Cooling System Huge Storage Unit Machine Analyzer Targeting Computer Improved Transmission Jammer Centrium Medium Armor Plating Improved Hacking Suite > --- WEAPON ----------- Overtuned Coil Gun Overtuned Coil Gun Enhanced Coil Gun Tiamat Missile Launcher > --- INVENTORY -------- Neutrino Core Overtuned Huge Scrapsphere Scrap Suit Advanced Cooling System Advanced Cooling System Advanced Cooling System Energy Well High-capacity Matter Pod Deep Structural Scanner Improved Transmission Jammer Experimental EM Shield Improved Hacking Suite Overtuned Beamcaster Overtuned Beamcaster Overtuned Coil Gun Overtuned Coil Gun Enhanced Coil Gun Enhanced Coil Gun Enhanced Coil Gun Tiamat Missile Launcher Tiamat Missile Launcher Improved Plasma Cutter DRS Beacon [Rating: 121] Favorites ----------- Power Neutrino Core Engine Ion Engine Power Core Neutrino Core Reactor Quantum Reactor Propulsion Light Treads Treads Light Treads Wheel Overtuned Huge Scrapsphere Utility Improved Cooling System Device Improved Cooling System Storage High-capacity Storage Unit Processor Machine Analyzer Hackware Makeshift Hacking Suite Protection Improved Medium Armor Plating Weapon KE Penetrator Energy Gun Improved Heavy Laser Energy Cannon Subdweller Beam Cannon Ballistic Gun KE Penetrator Ballistic Cannon Battle Cannon Launcher Tiamat Missile Launcher Special Weapon Improved Remote Datajack Slashing Weapon Power Sword Build | -11 -10 -10 -8 -8 -6 -6 -6 -6 -5 -5 -5 -5 -5 -5 -4 -4 -4 ------- Run | Yrd Mat Sub Rec Scr Fac Low Low Dat Pro Fac Ext Cet Arc Hub Fac Was Fac Slots Evolved 12 | . . . . . 8 . . . . 2 . . . . 2 . . Power 1 | . . . . . 1 . . . . . . . . . . . . Propulsion . | . . . . . . . . . . . . . . . . . . Utility 9 | . . . . . 6 . . . . 2 . . . . 1 . . Weapon 2 | . . . . . 1 . . . . . . . . . 1 . . Parts Attached 139 | 4 7 8 6 8 16 8 5 . 1 7 15 3 3 14 22 1 11 Power 20 | 1 1 1 1 1 1 . 2 . . . 4 2 1 . 3 . 2 Engine 8 | 1 1 1 1 . . . . . . . 2 . . . . . 2 Core 8 | . . . . 1 1 . 2 . . . 2 1 . . 1 . . Reactor 4 | . . . . . . . . . . . . 1 1 . 2 . . Propulsion 15 | 2 . 1 3 3 2 . 1 . . . . . . 2 1 . . Treads 7 | 2 . . 2 3 . . . . . . . . . . . . . Leg . | . . . . . . . . . . . . . . . . . . Wheel 8 | . . 1 1 . 2 . 1 . . . . . . 2 1 . . Hover . | . . . . . . . . . . . . . . . . . . Flight . | . . . . . . . . . . . . . . . . . . Utility 53 | 1 3 2 . 2 8 4 1 . . 4 4 1 2 7 8 1 5 Device 31 | . 1 1 . . 4 4 1 . . 1 1 . 2 7 4 1 4 Storage 6 | 1 2 . . 1 . . . . . 1 1 . . . . . . Processor 6 | . . . . . 1 . . . . 1 1 . . . 2 . 1 Hackware 3 | . . . . . 1 . . . . 1 . . . . 1 . . Protection 7 | . . 1 . 1 2 . . . . . 1 1 . . 1 . . Artifact . | . . . . . . . . . . . . . . . . . . Weapon 51 | . 3 4 2 2 5 4 1 . 1 3 7 . . 5 10 . 4 Energy Gun 15 | . 3 . . . 1 3 . . . . 1 . . 1 3 . 3 Energy Cannon 3 | . . . 2 . 1 . . . . . . . . . . . . Ballistic Gun 17 | . . 1 . 1 . . 1 . 1 . 5 . . 2 5 . 1 Ballistic Cannon 7 | . . 3 . . 1 . . . . 2 . . . 1 . . . Launcher 4 | . . . . . . . . . . 1 . . . 1 2 . . Special Weapon 2 | . . . . . . 1 . . . . 1 . . . . . . Impact Weapon . | . . . . . . . . . . . . . . . . . . Slashing Weapon 3 | . . . . 1 2 . . . . . . . . . . . . Piercing Weapon . | . . . . . . . . . . . . . . . . . . Special Melee Weapon . | . . . . . . . . . . . . . . . . . . Unidentified Prototypes 11 | . . . . . 2 . . . . 1 . . . 3 3 . 2 Corrupted Parts 1 | . . . . . . . . . . . . . 1 . . . . System Corruption 6 | . . . . . . . . . . . . . 6 . . . . Parts Lost 35 | . 1 5 5 . . . . . . 2 2 1 . 7 6 2 4 Power 9 | . 1 1 1 . . . . . . . . . . . 3 1 2 Propulsion 3 | . . 1 2 . . . . . . . . . . . . . . Utility 12 | . . 1 . . . . . . . 2 2 1 . 4 . 1 1 Weapon 11 | . . 2 2 . . . . . . . . . . 3 3 . 1 Highest Loss Streak 5 | . 1 3 5 . . . . . . 2 1 1 . 2 2 2 3 To Critical Strikes 1 | . . . . . . . . . . . 1 . . . . . . Average Backups 13 | 1 8 5 12 11 14 15 15 14 14 14 19 18 22 22 21 17 3 Power 1 | . 1 . 1 . 1 2 2 1 1 1 1 1 2 2 1 . . Propulsion 1 | . 1 . 2 1 1 1 . 1 1 1 1 1 1 1 1 1 . Utility 5 | . 1 2 3 4 4 7 8 9 9 7 8 6 10 10 10 8 2 Weapon 4 | . 4 3 6 4 3 3 2 2 2 3 8 7 7 7 5 7 1 Tool/Special . | . . . . . . . . . . . . . . . . . . Unused Backups 81 | . 1 9 . 11 10 . 3 . 1 2 4 10 2 1 7 18 2 Power 8 | . . 3 . 1 1 . 2 . . . 1 . . . . . . Propulsion 8 | . . . . 2 . . . . . . . 2 . . 2 1 1 Utility 24 | . 1 1 . 1 1 . 1 . . 1 . 4 2 . 2 9 1 Weapon 39 | . . 5 . 7 8 . . . . 1 3 4 . 1 3 7 . Tool/Special 2 | . . . . . . . . . 1 . . . . . . 1 . Average Slot Usage (%) 83 | . 96 86 77 69 89 89 88 68 85 87 88 88 87 87 91 75 69 Engine 4 | . 13 13 13 2 . . . . . . 3 3 . . . . 4 Core 5 | . . . . 9 9 13 13 13 13 11 6 5 . . . . . Reactor 1 | . . . . . . . . . . . . 1 10 11 9 3 . Treads 9 | . 28 14 17 24 . . . . . . . . . . . . . Wheel 6 | . . 13 5 . 12 13 8 6 6 5 5 5 5 5 6 5 4 Device 15 | . 12 1 . . 19 32 33 33 33 29 23 23 24 23 29 24 29 Storage 6 | . 14 2 14 12 6 6 6 6 6 5 5 5 5 5 5 4 . Processor 3 | . . . . . 4 . . . . 4 10 11 11 11 10 10 8 Hackware 2 | . . . . . 5 . . . . 4 5 5 5 5 6 5 4 Protection 5 | . . 11 . 5 8 2 6 6 6 5 5 5 3 4 . 4 . Energy Gun 5 | . 25 2 . . . 19 18 2 12 3 1 . . 3 8 1 6 Ballistic Gun 5 | . . . . 5 1 . 1 . 6 5 11 16 17 12 9 10 7 Ballistic Cannon 4 | . . 25 6 . . . . . . 6 . . . . 1 . . Slashing Weapon 1 | . . . . 5 13 . . . . . . . . . . . . Peak Build Rating 121 | 4 9 12 11 30 64 74 78 78 80 92 92 93 97 113 121 113 98 Average Rating 53 | 3 7 11 10 17 59 71 74 61 79 87 87 85 95 95 114 101 79 On Entrance 59 | . 4 9 11 9 30 64 68 78 78 80 92 86 93 96 103 105 72 Naked Turns 446 | . . . . 366 . . . . . . . . . . . . 80 Heaviest Build 168 | 8 29 31 41 61 87 93 105 105 105 149 145 144 150 163 168 146 51 Greatest Support 42 | 40 40 40 40 42 16 16 20 20 20 20 20 20 20 26 26 20 20 Greatest Overweight (x) 8 | . . 3 2 6 5 5 5 5 5 7 7 7 7 8 8 7 2 Average Overweight (x) 3 | . . 2 1 . 4 4 4 4 4 5 6 6 7 7 6 4 1 Largest Inventory Capacity 25 | 8 15 15 15 20 20 20 20 20 20 25 25 25 25 25 25 25 5 Average Capacity 17 | 7 11 6 15 16 20 20 20 20 20 21 25 25 25 25 25 21 5 Most Carried 25 | 4 12 15 15 20 20 20 20 20 20 21 25 25 25 25 25 24 5 Average Carried 16 | 1 8 6 13 14 18 19 19 20 19 19 24 20 24 24 23 20 4 Final Capacity 25 | 8 15 15 15 20 20 20 20 20 20 25 25 25 25 25 25 5 5 Final Carried 25 | 4 11 15 15 20 20 20 20 20 20 21 23 25 24 25 24 5 5 Class Distribution -------------------- 47% | Mutant 15% | Scavenger-Scrapper 12% | Commander-Gunner 7% | Scavenger-Gunner 3% | Derelict-Tank 3% | Derelict-Skirmisher 3% | Scavenger-Tank Dominant Class ---------------- Mutant | -10/Materials Mutant | -10/Subcaves Mutant | -8/Recycling Mutant | -8/Scraptown Assassin | -6/Factory Derelict-Skirmisher | -6/Lower Caves Tank | -6/Lower Caves Scavenger-Mutant | -6/Data Miner Scavenger-Scrapper | -5/Proximity Caves Scavenger-Scrapper | -5/Factory Scavenger-Scrapper | -5/Extension Commander-Gunner | -5/Cetus Commander-Gunner | -5/Archives Scavenger-Gunner | -5/Hub_04(d) Scavenger-Scrapper | -4/Factory Scavenger-Gunner | -4/Waste Scavenger-Tank | -4/Factory Resources | -11 -10 -10 -8 -8 -6 -6 -6 -6 -5 -5 -5 -5 -5 -5 -4 -4 -4 ----------- Run | Yrd Mat Sub Rec Scr Fac Low Low Dat Pro Fac Ext Cet Arc Hub Fac Was Fac Matter Collected 7469 | 202 218 850 74 305 181 1161 418 . 104 296 1128 265 300 498 846 370 253 Remotely . | . . . . . . . . . . . . . . . . . . Salvage Created 5883 | . 386 474 65 . 279 337 476 . 254 202 959 203 216 455 953 464 160 Parts 263 | . 15 43 4 . 10 10 13 . 14 7 43 7 15 27 38 . 17 Haulers Intercepted . | . . . . . . . . . . . . . . . . . . Recyclers Shooed 3 | . . . . . . . . . . . 1 . . . 2 . . Parts Field Recycled . | . . . . . . . . . . . . . . . . . . Retrieved Matter . | . . . . . . . . . . . . . . . . . . Parts Self-Destructed 78 | . . 24 . . . 9 31 . 14 . . . . . . . . Prevented 2 | . . . . . . 2 . . . . . . . . . . . Kills | -11 -10 -10 -8 -8 -6 -6 -6 -6 -5 -5 -5 -5 -5 -5 -4 -4 -4 ------- Run | Yrd Mat Sub Rec Scr Fac Low Low Dat Pro Fac Ext Cet Arc Hub Fac Was Fac Combat Hostiles Destroyed 82 | . 7 19 2 . 3 3 6 . 6 2 12 3 . 3 13 2 1 Melee 3 | . . . . . 3 . . . . . . . . . . . . Guns 55 | . 7 2 . . . 3 5 . 6 2 12 3 . 2 11 1 1 Cannons 19 | . . 17 2 . . . . . . . . . . . . . . AOE 4 | . . . . . . . . . . . . . . 1 2 1 . Classes Destroyed 19 | . 3 4 . . 2 2 2 . . 1 . . 1 1 1 1 1 Worker 8 | . 2 . . . . . . . . 1 . . . 2 1 . 2 Builder 5 | . . . . . . . . . . 1 . . . 1 2 . 1 Tunneler 1 | . . . . . . . . . . . . . . . . . 1 Recycler 4 | . . . . . 1 . . . . . 1 . . 1 1 . . Mechanic 2 | . . . . . 1 . . . . . . . . . . . 1 Operator 6 | . . . . . . . . . . . . . 6 . . . . Turret 2 | . . 2 . . . . . . . . . . . . . . . Watcher 4 | . 1 . . . . . . . . . 1 . . 2 . . . Swarmer 19 | . . 7 . . 3 . 1 . 4 . 3 . . . 1 . . Grunt 20 | . 7 . . . . 1 4 . . . 1 . . . 7 . . Protector 1 | . . . . . . . . . . . . . . 1 . . . Sentry 14 | . . 1 2 . . 1 . . 1 2 5 . . 2 . . . Hunter 7 | . . . . . . 1 . . 1 . 1 . . . 4 . . Programmer 2 | . . . . . . . . . . . . . . . 1 . 1 Behemoth 3 | . . . . . . . 1 . . . 2 . . . . . . Compactor 2 | . . . . . . . . . . . . . . . . 2 . Cetus Guard 3 | . . . . . . . . . . . . 3 . . . . . Subdweller 11 | . . 11 . . . . . . . . . . . . . . . Scrapoid 1 | . . . . . . . 1 . . . . . . . . . . Decomposer 1 | . . . . . . 1 . . . . . . . . . . . Packrat 1 | . . . . . . 1 . . . . . . . . . . . Samaritan 1 | . . . . . . 1 . . . . . . . . . . . Guerrilla 1 | . . . . . . . . . . . . . . 1 . . . Best Kill Streak 6 | . 4 6 2 . 3 1 3 . 4 2 4 2 3 4 5 1 2 Combat Bots Only 4 | . 2 4 2 . 3 1 3 . 4 1 4 2 . 1 4 1 1 Max Kills in Single Turn 3 | . 1 1 1 . 1 1 1 . 2 1 2 2 1 2 3 1 2 Gunslinging 1 | . . . . . . . . . 1 . . 1 . . . . . Exploded 1 | . . . . . . . . . . . . . . 1 1 1 . Melee 1 | . . . . . 1 . . . . . . . . . . . . Uniques/NPCs Destroyed . | . . . . . . . . . . . . . . . . . . Combat | -11 -10 -10 -8 -8 -6 -6 -6 -6 -5 -5 -5 -5 -5 -5 -4 -4 -4 -------- Run | Yrd Mat Sub Rec Scr Fac Low Low Dat Pro Fac Ext Cet Arc Hub Fac Was Fac Hostile Shots Fired 636 | . 41 139 16 . 15 29 34 . 9 12 86 16 2 37 89 1 110 Missed 215 | . 15 56 4 . 5 14 10 . 2 4 20 7 . 8 30 . 40 Hits 421 | . 26 83 12 . 10 15 24 . 7 8 66 9 2 29 59 1 70 Melee 1 | . . . . . . . . . . . . . . . . 1 . Projectile 420 | . 26 83 12 . 10 15 24 . 7 8 66 9 2 29 59 . 70 AOE 11 | . . 6 . . . . . . . . . . . 1 1 . 3 Critical Strikes 16 | . . 5 . . . . 2 . . . 4 1 . 3 . . 1 Damage Taken 9094 | . 319 1116 182 . 148 136 494 . 79 187 1450 184 56 1199 1574 375 1595 Core 1757 | . 50 107 14 . 36 17 65 . 16 72 74 15 . 132 91 124 944 Absorbed by Shields 522 | . . . . . . 4 104 . 24 4 285 101 . . . . . Regen/Repaired (Parts) 137 | . . . . . 1 . . . . . 104 . . . 32 . . Core Remaining (%) 71 | 100 . . . 31 . . . . 84 . . . . 70 . . . Volleys Fired 427 | . 34 73 7 . . 16 18 . 6 36 92 10 20 32 45 14 24 Largest 4 | . 2 2 2 . . 3 3 . 3 3 3 3 3 3 4 2 3 Hottest 244 | . 115 115 160 . . 195 195 . 162 144 130 99 99 170 244 92 180 Shots Fired 974 | . 65 145 14 . . 44 55 . 18 59 166 30 60 89 158 21 50 Gun 713 | . 65 17 . . . 42 55 . 18 21 118 30 60 84 151 4 48 Cannon 187 | . . 128 14 . . . . . . 38 . . . 3 4 . . Launcher 24 | . . . . . . . . . . . . . . 2 3 17 2 Special 50 | . . . . . . 2 . . . . 48 . . . . . . Kinetic 626 | . . 130 10 . . . . . 6 49 113 30 60 70 112 4 42 Thermal 268 | . 65 15 4 . . 42 55 . 12 10 5 . . 17 43 . . Explosive 24 | . . . . . . . . . . . . . . 2 3 17 2 Electromagnetic 6 | . . . . . . . . . . . . . . . . . 6 Robot Hit Streak 26 | . 5 15 5 . . 13 10 . 4 12 22 16 9 7 7 26 5 Robot Miss Streak 8 | . 4 8 1 . . 2 3 . 2 3 3 2 5 6 7 . 6 Penetration Max 2 | . . . . . . . . . . 1 2 1 1 1 1 . . Secondary Targets 7 | . 1 . . . . 1 . . 1 . 1 1 . . 2 . . Max Gunslinging Chain 1 | . 1 . . . . 1 . . 1 . 1 1 . . 1 . . Shots Hit Robots 541 | . 33 48 12 . 6 28 30 . 10 24 124 23 34 50 73 19 27 Core Hits 247 | . 18 28 2 . 4 11 12 . 7 7 35 13 16 31 38 7 18 Critical Kills 5 | . . . . . . . . . . 1 1 . . 1 1 . 1 Critical Parts Destroyed 21 | . . . . . . . . . . 1 4 3 2 . 9 . 2 Critical Strikes 43 | . 2 2 2 . . 2 2 . . 4 6 4 2 1 13 . 3 Burn 9 | . 2 . . . . 2 2 . . . . . . . 3 . . Destroy 29 | . . . . . . . . . . 3 6 4 2 1 10 . 3 Blast 5 | . . 2 2 . . . . . . 1 . . . . . . . Melee Attacks 18 | . . . . . 18 . . . . . . . . . . . . Impact . | . . . . . . . . . . . . . . . . . . Slashing 18 | . . . . . 18 . . . . . . . . . . . . Piercing . | . . . . . . . . . . . . . . . . . . Sneak Attacks 3 | . . . . . 3 . . . . . . . . . . . . Combat Hostiles . | . . . . . . . . . . . . . . . . . . Follow-up Attacks 1 | . . . . . 1 . . . . . . . . . . . . Damage Inflicted 19296 | . 452 1047 251 . 409 672 863 . 251 708 2561 947 1007 1970 3080 3609 1469 Guns 11912 | . 452 179 . . . 672 863 . 251 479 2561 947 1007 1424 2280 87 710 Cannons 1409 | . . 868 251 . . . . . . 229 . . . 14 47 . . Explosions 5566 | . . . . . . . . . . . . . . 532 753 3522 759 Melee 409 | . . . . . 409 . . . . . . . . . . . . Ramming . | . . . . . . . . . . . . . . . . . . Kinetic 9555 | . . 875 146 . . . . . 71 477 2460 947 1007 1084 1771 87 630 Thermal 3686 | . 452 172 105 . . 672 863 . 180 231 101 . . 354 556 . . Explosive 5566 | . . . . . . . . . . . . . . 532 753 3522 759 Electromagnetic 80 | . . . . . . . . . . . . . . . . . 80 Impact . | . . . . . . . . . . . . . . . . . . Slashing 409 | . . . . . 409 . . . . . . . . . . . . Piercing . | . . . . . . . . . . . . . . . . . . Highest Corruption 24 | . . . . . 2 2 2 2 2 3 3 3 9 8 4 24 24 Average Corruption 4 | . . . . . 2 2 2 2 2 2 3 3 6 4 2 16 24 Corruption Purged 9 | . . . . . . . . . . . . . 9 . . . . Corruption Blocked . | . . . . . . . . . . . . . . . . . . Effects 144 | . . . . . 3 12 9 2 6 8 23 16 9 9 10 9 28 Message Errors 30 | . . . . . . 6 . 1 . 2 3 3 4 3 1 2 5 Matter Fused 37 | . . . . . 3 2 2 . 3 3 5 6 1 2 2 1 7 Heat Flow Errors 8 | . . . . . . . . . 1 1 1 2 1 . . 1 1 Energy Discharges 23 | . . . . . . 2 2 1 2 . 3 4 2 1 2 2 2 Parts Rejected 7 | . . . . . . . 1 . . . 4 . . . 1 1 . Parts Fused 1 | . . . . . . . . . . . . . . . 1 . . Data Loss (minor) 14 | . . . . . . . . . . . 5 1 1 1 . 1 5 Data Loss (major) 6 | . . . . . . 2 1 . . . . . . 1 1 . 1 Misfires 4 | . . . . . . . 1 . . 1 1 . . . 1 . . Alerts 9 | . . . . . . . 2 . . 1 1 . . . 1 1 3 Misdirections 3 | . . . . . . . . . . . . . . . . . 3 Weapon Failures 2 | . . . . . . . . . . . . . . 1 . . 1 Overload Shots 2 | . . . . . . . . . . . . . . . 2 . . Overflow Damage 223 | . . 5 . . 120 . . . . . . . . 8 26 31 33 Projectiles 5 | . . 5 . . . . . . . . . . . . . . . Explosions 98 | . . . . . . . . . . . . . . 8 26 31 33 Melee 120 | . . . . . 120 . . . . . . . . . . . . Knockbacks 3 | . . 2 . . . . . . . 1 . . . . . . . Impact . | . . . . . . . . . . . . . . . . . . Kinetic 3 | . . 2 . . . . . . . 1 . . . . . . . Secondary . | . . . . . . . . . . . . . . . . . . Self-Inflicted Damage 65 | . . . . . . . . . . . . . . . . 65 . Shots 2 | . . . . . . . . . . . . . . . . 2 . Rammed . | . . . . . . . . . . . . . . . . . . Targets Rammed . | . . . . . . . . . . . . . . . . . . Kicked . | . . . . . . . . . . . . . . . . . . Crushed . | . . . . . . . . . . . . . . . . . . Highest Temperature 264 | . 114 . 134 . . 48 67 . 171 121 101 204 181 . 264 142 162 Average Temperature 47 | . 32 . 54 . . 23 19 . 33 33 35 112 126 . 85 101 76 Received Heat Transfer 1481 | . 183 183 54 . . 55 132 . . 43 248 . 9 120 267 9 178 Siege Activations . | . . . . . . . . . . . . . . . . . . Martial Activations . | . . . . . . . . . . . . . . . . . . Shielding Activations . | . . . . . . . . . . . . . . . . . . Robots Disrupted . | . . . . . . . . . . . . . . . . . . Combat Hostiles . | . . . . . . . . . . . . . . . . . . Robots Corrupted . | . . . . . . . . . . . . . . . . . . Combat Hostiles . | . . . . . . . . . . . . . . . . . . Parts Fried 3 | . . . . . . . . . . . 3 . . . . . . Impact Corruptions . | . . . . . . . . . . . . . . . . . . Robots Melted 1 | . . . . . . . 1 . . . . . . . . . . Combat Hostiles 1 | . . . . . . . 1 . . . . . . . . . . Parts Melted 20 | . 2 . . . . 2 6 . 2 2 1 . . . 5 . . Heat Transferred 6786 | . 1336 444 148 . . 1098 1284 . 259 333 148 . . 462 1274 . . Parts Sabotaged . | . . . . . . . . . . . . . . . . . . Parts Stolen . | . . . . . . . . . . . . . . . . . . Parts Stripped . | . . . . . . . . . . . . . . . . . . Power Chain Reactions . | . . . . . . . . . . . . . . . . . . Alert | -11 -10 -10 -8 -8 -6 -6 -6 -6 -5 -5 -5 -5 -5 -5 -4 -4 -4 ------- Run | Yrd Mat Sub Rec Scr Fac Low Low Dat Pro Fac Ext Cet Arc Hub Fac Was Fac Maximum Alert Level 5 | . . . . . . . . . . 1 2 1 1 3 5 2 2 Low Security (%) 55 | 100 100 . 100 . 100 . . . . 92 64 30 76 24 . . . Level 1 18 | . . . . . . . . . . 7 16 69 23 2 36 . 7 Level 2 17 | . . . . . . . . . . . 19 . . 34 20 100 92 Level 3 5 | . . . . . . . . . . . . . . 38 13 . . Level 4 2 | . . . . . . . . . . . . . . . 19 . . Level 5 1 | . . . . . . . . . . . . . . . 9 . . High Security . | . . . . . . . . . . . . . . . . . . Max Security . | . . . . . . . . . . . . . . . . . . Peak Influence 1664 | . 65 . 53 . 64 . . . . 239 487 352 234 843 1664 635 668 Initial 567 | . . . 53 . . . . . . 11 109 248 74 26 396 567 381 Average 269 | . 13 . 14 . 12 . . . . 22 190 231 165 524 782 590 463 Influence Increases 7541 | . 197 240 40 . 174 156 605 . 192 392 945 350 304 1329 1932 108 577 Destroy 0b10 Robot/C 3160 | . 140 200 40 . 80 100 360 . 140 60 520 160 80 400 840 . 40 Destroy 0b10 Robot/NC 205 | . 15 . . . 20 . . . . 10 20 10 35 35 25 . 35 Destroy Leader 514 | . 42 10 . . 22 10 60 . 20 30 34 . . 124 142 . 20 Allied During Kill 1855 | . . . . . 5 46 185 . 32 10 301 170 115 495 490 . 6 Successful Hack 22 | . . . . . 8 . . . . 14 . . . . . . . Select Force Hacks 50 | . . . . . . . . . . . . . . 50 . . . Disable Machine 555 | . . . . . 30 . . . . 90 30 . 60 90 135 . 120 Destroy Structure 925 | . . . . . 9 . . . . 178 40 10 14 120 300 108 146 Partial Spotted 30 | . . . . . . . . . . . . . . . . . 30 Lose Combat Pursuer 225 | . . 30 . . . . . . . . . . . 15 . . 180 Influence Decreases 6873 | . 197 128 152 . 174 86 332 343 174 187 724 608 414 594 1123 1183 454 Entered New Map 2527 | . . . 59 . . . 14 343 . 7 114 196 112 50 415 1053 164 Time Decay 3285 | . 197 128 43 . 144 86 278 . 174 139 450 342 262 294 428 90 230 Lost Part 278 | . . . 50 . . . . . . 8 20 10 . 70 60 20 40 Lost Ally 783 | . . . . . 30 . 40 . . 33 140 60 40 180 220 20 20 Squads Dispatched 33 | . 2 . . . 6 . . . . 3 1 . . 7 11 . 3 Investigation 15 | . 1 . . . 4 . . . . 3 . . . 1 5 . 1 Extermination 7 | . . . . . 2 . . . . . . . . 1 3 . 1 Reinforcement 7 | . 1 . . . . . . . . . 1 . . 3 2 . . Assault 4 | . . . . . . . . . . . . . . 2 1 . 1 Garrison . | . . . . . . . . . . . . . . . . . . Intercept . | . . . . . . . . . . . . . . . . . . Searches Triggered . | . . . . . . . . . . . . . . . . . . Data Miner Redirects 5 | . . . . . . . . . . . . . . 2 2 . 1 Construction Impeded 2 | . . . . . . . . . . . 1 . . 1 . . . Haulers Reinforced 1 | . . . . . . . . . . . . . . . 1 . . Active Scanning Responses . | . . . . . . . . . . . . . . . . . . Cargo Convoy Interrupts . | . . . . . . . . . . . . . . . . . . Stealth | -11 -10 -10 -8 -8 -6 -6 -6 -6 -5 -5 -5 -5 -5 -5 -4 -4 -4 --------- Run | Yrd Mat Sub Rec Scr Fac Low Low Dat Pro Fac Ext Cet Arc Hub Fac Was Fac Distress Signals 9 | . 1 . . . 1 . . . . . 1 2 . . 3 . 1 Communications Jammed 93 | . . . . . . . . . . . 6 . . 68 19 . . Distress Signals 90 | . . . . . . . . . . . 6 . . 65 19 . . Times Spotted 199 | . 13 25 2 . 5 4 16 . 7 2 30 8 11 17 31 6 22 Peak Tracking Total 10 | . 4 5 1 . 3 3 4 . 4 1 8 5 2 4 4 4 10 Tactical Retreats 6 | . . 1 . . . . . . . . . . . 1 . . 4 Traps | -11 -10 -10 -8 -8 -6 -6 -6 -6 -5 -5 -5 -5 -5 -5 -4 -4 -4 ------- Run | Yrd Mat Sub Rec Scr Fac Low Low Dat Pro Fac Ext Cet Arc Hub Fac Was Fac Traps Triggered 17 | . 1 3 . . 1 . . . . 3 4 . . . 4 . 1 Indirectly . | . . . . . . . . . . . . . . . . . . Trap Hack Attempts . | . . . . . . . . . . . . . . . . . . Triggered . | . . . . . . . . . . . . . . . . . . Disarmed . | . . . . . . . . . . . . . . . . . . Reprogrammed . | . . . . . . . . . . . . . . . . . . Reused . | . . . . . . . . . . . . . . . . . . Traps Extracted . | . . . . . . . . . . . . . . . . . . Installed . | . . . . . . . . . . . . . . . . . . Triggered . | . . . . . . . . . . . . . . . . . . Machines | -11 -10 -10 -8 -8 -6 -6 -6 -6 -5 -5 -5 -5 -5 -5 -4 -4 -4 ---------- Run | Yrd Mat Sub Rec Scr Fac Low Low Dat Pro Fac Ext Cet Arc Hub Fac Was Fac Machines Disabled 40 | . . 2 . . 2 . . . . 6 3 . 4 6 9 . 8 Max in Single Turn 6 | . . 1 . . 1 . . . . 6 1 . 1 1 1 . 3 Network Hub 1 | . . . . . . . . . . . . . . 1 . . . Machines Repaired . | . . . . . . . . . . . . . . . . . . Machines Dismantled . | . . . . . . . . . . . . . . . . . . Machines Sabotaged 1 | . . . . . . . . . . . . . . 1 . . . Overloaded Fab Kills . | . . . . . . . . . . . . . . . . . . Hacking | -11 -10 -10 -8 -8 -6 -6 -6 -6 -5 -5 -5 -5 -5 -5 -4 -4 -4 --------- Run | Yrd Mat Sub Rec Scr Fac Low Low Dat Pro Fac Ext Cet Arc Hub Fac Was Fac Machines Accessed 31 | . . 2 . 3 7 2 . 4 . 4 1 1 . 1 5 . 1 Terminals 6 | . . . . . 2 . . . . 1 1 1 . 1 . . . Fabricators . | . . . . . . . . . . . . . . . . . . Repair Stations . | . . . . . . . . . . . . . . . . . . Recycling Units 13 | . . . . . 4 . . . . 3 . . . . 5 . 1 Scanalyzers . | . . . . . . . . . . . . . . . . . . Garrison Access 1 | . . . . . 1 . . . . . . . . . . . . Total Hacks 95 | . . 5 . 22 11 5 . 32 . 7 1 2 . 2 7 . 1 Successful 81 | . . 5 . 22 6 5 . 32 . 4 . . . 1 5 . 1 Failed 14 | . . . . . 5 . . . . 3 1 2 . 1 2 . . Catastrophic 1 | . . . . . 1 . . . . . . . . . . . . Database Lockouts . | . . . . . . . . . . . . . . . . . . Manual 24 | . . . . . 7 . . . . 5 1 1 . 2 7 . 1 Terminals 11 | . . . . . 4 . . . . 2 1 2 . 2 . . . Fabricators . | . . . . . . . . . . . . . . . . . . Repair Stations . | . . . . . . . . . . . . . . . . . . Recycling Units 18 | . . . . . 5 . . . . 5 . . . . 7 . 1 Scanalyzers . | . . . . . . . . . . . . . . . . . . Garrison Access 2 | . . . . . 2 . . . . . . . . . . . . Terminal Hacks 67 | . . 5 . 22 2 5 . 32 . 1 . . . . . . . Record 40 | . . 4 . 21 . 4 . 11 . . . . . . . . . Part Schematic 13 | . . . . . . . . 13 . . . . . . . . . Robot Schematic 5 | . . . . . . . . 5 . . . . . . . . . Prototype ID Bank 4 | . . . . . 1 . . 3 . . . . . . . . . Open Door 1 | . . . . . . 1 . . . . . . . . . . . Branch Access Points 2 | . . . . . 1 . . . . 1 . . . . . . . Proto ID Catalog 2 | . . 1 . 1 . . . . . . . . . . . . . Fabricator Hacks . | . . . . . . . . . . . . . . . . . . Repair Station Hacks . | . . . . . . . . . . . . . . . . . . Recycling Unit Hacks . | . . . . . . . . . . . . . . . . . . Scanalyzer . | . . . . . . . . . . . . . . . . . . Garrison Access Hacks . | . . . . . . . . . . . . . . . . . . Unauthorized Hacks 14 | . . . . . 4 . . . . 3 . . . 1 5 . 1 Terminals 1 | . . . . . . . . . . . . . . 1 . . . Sabotage 1 | . . . . . . . . . . . . . . 1 . . . Fabricators . | . . . . . . . . . . . . . . . . . . Repair Stations . | . . . . . . . . . . . . . . . . . . Recycling Units 13 | . . . . . 4 . . . . 3 . . . . 5 . 1 Fedlink 8 | . . . . . 3 . . . . 3 . . . . 2 . . Scrapoids 3 | . . . . . 1 . . . . . . . . . 2 . . Scraphulk 2 | . . . . . . . . . . . . . . . 1 . 1 Scanalyzers . | . . . . . . . . . . . . . . . . . . Garrison Access . | . . . . . . . . . . . . . . . . . . Data Cores Recovered . | . . . . . . . . . . . . . . . . . . Used . | . . . . . . . . . . . . . . . . . . Hacking Detections 8 | . . . . . 3 . . . . 2 1 1 . 1 . . . Full Trace Events . | . . . . . . . . . . . . . . . . . . Feedback Events . | . . . . . . . . . . . . . . . . . . Feedback Blocked . | . . . . . . . . . . . . . . . . . . Robot Schematics Acquired 5 | . . . . . . . . 5 . . . . . . . . . Robots Built . | . . . . . . . . . . . . . . . . . . Authchips . | . . . . . . . . . . . . . . . . . . Time . | . . . . . . . . . . . . . . . . . . Total Robot Build Rating . | . . . . . . . . . . . . . . . . . . Part Schematics Acquired 13 | . . . . . . . . 13 . . . . . . . . . Parts Built . | . . . . . . . . . . . . . . . . . . Authchips . | . . . . . . . . . . . . . . . . . . Time . | . . . . . . . . . . . . . . . . . . Total Part Build Rating . | . . . . . . . . . . . . . . . . . . Parts Repaired . | . . . . . . . . . . . . . . . . . . Time . | . . . . . . . . . . . . . . . . . . Parts Recycled . | . . . . . . . . . . . . . . . . . . Recycled Matter . | . . . . . . . . . . . . . . . . . . Retrieved Matter . | . . . . . . . . . . . . . . . . . . Retrieved Components . | . . . . . . . . . . . . . . . . . . Parts Scanalyzed . | . . . . . . . . . . . . . . . . . . Part Schematics Acquired . | . . . . . . . . . . . . . . . . . . Parts Damaged . | . . . . . . . . . . . . . . . . . . Bothacking | -11 -10 -10 -8 -8 -6 -6 -6 -6 -5 -5 -5 -5 -5 -5 -4 -4 -4 ------------ Run | Yrd Mat Sub Rec Scr Fac Low Low Dat Pro Fac Ext Cet Arc Hub Fac Was Fac Used RIF Installer . | . . . . . . . . . . . . . . . . . . Robots Hacked 1 | . . . . . . . . . . . 1 . . . . . . Non-combat . | . . . . . . . . . . . . . . . . . . Combat 1 | . . . . . . . . . . . 1 . . . . . . Robot Hacks Applied 1 | . . . . . . . . . . . 1 . . . . . . parse_system 1 | . . . . . . . . . . . 1 . . . . . . Relay Couplers Released . | . . . . . . . . . . . . . . . . . . Fabnet Peak Effective % . | . . . . . . . . . . . . . . . . . . Robots Rewired 22 | . . . . . . . . . . . 22 . . . . . . Allies Hacked 1 | . . . . . . . . . . . . . . 1 . . . Hacks Repelled . | . . . . . . . . . . . . . . . . . . Allies | -11 -10 -10 -8 -8 -6 -6 -6 -6 -5 -5 -5 -5 -5 -5 -4 -4 -4 -------- Run | Yrd Mat Sub Rec Scr Fac Low Low Dat Pro Fac Ext Cet Arc Hub Fac Was Fac Total Allies 62 | . . . . . 5 7 . . . . 33 6 . . 10 . 1 Largest Group 22 | . . . . . 5 7 5 2 2 2 22 22 20 17 12 1 1 Highest-Rated Group 1226 | . . . . . 143 297 235 94 94 94 809 1226 1106 882 620 92 123 Highest-Rated Ally 159 | . . . . . 31 47 47 47 47 47 159 159 159 116 116 92 123 Total Orders 7 | . . . . . . . . . . . . 3 2 . 2 . . STAY 4 | . . . . . . . . . . . . 2 1 . 1 . . FOLLOW 3 | . . . . . . . . . . . . 1 1 . 1 . . Ally Attacks 656 | . . . . . 24 13 68 . 14 26 106 47 29 132 173 10 14 Total Damage 15647 | . . . . . 439 330 1431 . 208 360 2314 818 606 3044 4683 835 579 Kills 107 | . . . . . 3 2 12 . 1 1 20 7 5 23 30 . 3 Allies Corrupted 4 | . . . . . . . . . . . . . . 3 1 . . Allies Melted . | . . . . . . . . . . . . . . . . . . Intel | -11 -10 -10 -8 -8 -6 -6 -6 -6 -5 -5 -5 -5 -5 -5 -4 -4 -4 ------- Run | Yrd Mat Sub Rec Scr Fac Low Low Dat Pro Fac Ext Cet Arc Hub Fac Was Fac Active Infowar (turns) 8477 | . . . . . 755 895 612 110 392 685 1481 770 570 640 1057 150 360 Sensors 3155 | . . . . . 522 895 612 110 392 624 . . . . . . . IFF 1 | . . . . . . . . . . . . . . . . . 1 Structural 1402 | . . . . . 753 47 . . . 602 . . . . . . . Seismic 234 | . . . . . 234 . . . . . . . . . . . . Machine Analysis 5682 | . . . . . . . . . . 655 1481 770 570 640 1057 150 359 Jamming 4722 | . . . . . . . . . . 55 1481 770 570 640 1056 150 . Robot Analysis Total . | . . . . . . . . . . . . . . . . . . Derelict Logs Recovered 9 | . . 2 . 5 . . 1 . 1 . . . . . . . . Drone Launches . | . . . . . . . . . . . . . . . . . . Drone Recoveries . | . . . . . . . . . . . . . . . . . . Exploration | -11 -10 -10 -8 -8 -6 -6 -6 -6 -5 -5 -5 -5 -5 -5 -4 -4 -4 ------------- Run | Yrd Mat Sub Rec Scr Fac Low Low Dat Pro Fac Ext Cet Arc Hub Fac Was Fac Turns Passed 15753 | 69 921 2475 131 3514 756 895 612 110 392 685 1481 770 570 640 1057 191 484 Spaces Moved 10404 | 41 393 1959 48 2301 536 682 451 95 309 474 833 447 308 336 581 128 482 Core 886 | 5 . . . 724 . . . . . . . . . . . . 157 Treads 2064 | 36 393 22 36 1577 . . . . . . . . . . . . . Legs . | . . . . . . . . . . . . . . . . . . Wheels 7454 | . . 1937 12 . 536 682 451 95 309 474 833 447 308 336 581 128 325 Hover . | . . . . . . . . . . . . . . . . . . Flight . | . . . . . . . . . . . . . . . . . . Fastest Speed 50 | 50 160 110 120 50 110 110 110 110 110 110 120 130 140 140 130 80 50 Average Speed 129 | 146 160 112 195 150 115 119 118 110 119 122 130 131 140 141 152 116 76 Slowest Speed 350 | 160 160 160 240 350 120 120 120 120 120 140 140 140 140 180 180 140 90 Overloaded Moves . | . . . . . . . . . . . . . . . . . . Propulsion Burnouts . | . . . . . . . . . . . . . . . . . . Robots Hopped . | . . . . . . . . . . . . . . . . . . Potential Cave-ins 4 | . . . . . . . . . . . . . . . 2 2 . Cave-ins Triggered 1 | . . . . . . . . . . . . . . . . 1 . Exploration Rate (%) 50 | 3 56 95 10 89 19 69 59 69 56 12 89 56 85 32 15 93 10 Regions Visited 17 Branch Regions 11 Pre-discovered Areas 11 | . . 2 . 4 1 1 1 1 1 . . . . . . . . Known Exits Taken 4 | . . . . 1 1 . . . 1 1 . . . . . . . Unknown Exits Taken 11 | 1 1 1 1 . . 1 1 1 . . 1 1 1 1 . . . Scrap Searched 28 | . . 15 . 5 . 3 2 . 3 . . . . . . . . Spaces Dug 39 | . . 2 . . 8 . . . . 13 . . . 2 1 13 . Terrain Destroyed 492 | . . 3 . . 8 . . . 6 105 27 2 6 34 97 117 87 Melee 8 | . . . . . 8 . . . . . . . . . . . . Projectile 181 | . . 3 . . . . . . 6 29 27 2 6 10 71 3 24 AOE 303 | . . . . . . . . . . 76 . . . 24 26 114 63 Terrain Rammed . | . . . . . . . . . . . . . . . . . . Walls Destroyed . | . . . . . . . . . . . . . . . . . . Machines Disabled . | . . . . . . . . . . . . . . . . . . Actions | -11 -10 -10 -8 -8 -6 -6 -6 -6 -5 -5 -5 -5 -5 -5 -4 -4 -4 --------- Run | Yrd Mat Sub Rec Scr Fac Low Low Dat Pro Fac Ext Cet Arc Hub Fac Was Fac Total 12004 | 48 619 2084 71 2364 653 728 495 100 323 536 1134 616 404 430 708 144 547 Wait 570 | . 171 . 6 1 47 . . . . . 125 102 61 27 15 . 15 Move 10387 | 40 392 1958 47 2300 535 681 450 94 308 473 832 446 307 335 581 126 482 Hop . | . . . . . . . . . . . . . . . . . . Pick Up 197 | 4 11 24 4 31 20 10 6 . 2 9 14 29 5 9 16 . 3 Fast Attach 64 | 4 1 . . 8 6 1 3 3 2 1 7 . 1 8 9 . 10 Attach 55 | . 3 7 5 . 6 6 . . 1 5 5 1 2 6 7 1 . Detach 3 | . . . 1 . . 1 . . . 1 . . . . . . . Swap 71 | . 4 3 1 1 6 4 4 . . 6 13 3 1 4 11 2 8 Drop 172 | . 3 8 . 23 19 9 14 3 4 5 15 25 7 8 24 . 5 Fire 427 | . 34 73 7 . . 16 18 . 6 36 92 10 20 32 45 14 24 Melee 14 | . . . . . 14 . . . . . . . . . . . . Ram . | . . . . . . . . . . . . . . . . . . Kick . | . . . . . . . . . . . . . . . . . . Crush . | . . . . . . . . . . . . . . . . . . Escape Stasis 32 | . . . . . . . . . . . 31 . . . . 1 . Rewire 1 | . . . . . . . . . . . . . . 1 . . . Trap . | . . . . . . . . . . . . . . . . . . Miscellaneous 11 | . . 11 . . . . . . . . . . . . . . . Route ------- -11/Scrapyard -10/Materials (discovered 3 exits: [*Mat x2] / *Sub) -10/Subcaves (discovered 3 exits: [*Mat x2] / [*Rec]) -8/Recycling -8/Scraptown (discovered 2 exits: *Fac x2) -6/Factory (discovered 4 exits: Fac x2 / *Low x2) -6/Lower Caves -6/Lower Caves -6/Data Miner -5/Proximity Caves -5/Factory (discovered 4 exits: Upp x2 / *Ext x2) -5/Extension (discovered 2 exits: *Fac / *Cet) -5/Cetus (discovered 2 exits: *Fac / [*Arc]) -5/Archives (discovered 3 exits: *Fac / *Hub x2) -5/Hub_04(d) (discovered 2 exits: *Fac x2) -4/Factory (discovered 4 exits: *Res x2 / *Upp x2) -4/Waste -4/Factory History --------- Turn | Location | Event 10 | -11/Scrapyard | Discovered new exit (range 15) 70 | -11/Scrapyard | Entered Materials 314 | -10/Materials | Build established: Mutant 421 | -10/Materials | Discovered new exit (range 15) 576 | -10/Materials | Discovered new exit (range 16) 947 | -10/Materials | Discovered new exit (range 12) 991 | -10/Materials | Entered Subcaves 992 | -10/Subcaves | Approached by a straggling Scientist 1069 | -10/Subcaves | Lost 3 parts (1p1n1u) 1404 | -10/Subcaves | Learned location of Zion (-7) 1404 | -10/Subcaves | Met a Zionite searching for "candidates" 1451 | -10/Subcaves | Learned location of Mines (-10) 1487 | -10/Subcaves | Discovered new exit (range 8) 1509 | -10/Subcaves | Learned Materials trap positions 1581 | -10/Subcaves | A swath of the cavern ceiling suddenly collapsed 1811 | -10/Subcaves | Ambushed by Subdweller buried in earth 2000 | -10/Subcaves | A swath of the cavern ceiling suddenly collapsed 2092 | -10/Subcaves | Discovered new exit (range 12) 2096 | -10/Subcaves | Core integrity fell below 50% 2156 | -10/Subcaves | Visited Clippyterm 2160 | -10/Subcaves | Learned Factory garrison access intel 2179 | -10/Subcaves | Shifting Twisted Machinery released Mak. Axe 2179 | -10/Subcaves | Shifting Twisted Machinery released Sub. Machine Gun 2426 | -10/Subcaves | Shifting Twisted Machinery released Sub. Beam Cannon 2476 | -10/Subcaves | Shifting Twisted Machinery released Mak. Light Armor Plating 2553 | -10/Subcaves | Disturbed a concealed Subdweller 2988 | -10/Subcaves | Visited 4L-MR0's lab 3079 | -10/Subcaves | Discovered new exit (range 14) 3466 | -10/Subcaves | Entered Recycling 3518 | -8/Recycling | Lost 5 parts (1p2n2w) 3541 | -8/Recycling | Scanned before Scraplab entrance 3575 | -8/Recycling | Entered Scraplab 3590 | -8/Recycling | Discovered new exit (range 4) 3597 | -8/Recycling | Entered Scraptown 3706 | -8/Scraptown | Visited UFD Registry 3706 | -8/Scraptown | Registered with UFD as "Cryosourcer" 3746 | -8/Scraptown | Visited Science Guys 3821 | -8/Scraptown | Visited Research Penetration Think Tank 3842 | -8/Scraptown | Visited Scrapoid Pod Storage 3866 | -8/Scraptown | Visited Derelict Rescue Squad 3889 | -8/Scraptown | Visited DA-N13 Charitable Foundation 3903 | -8/Scraptown | Visited Botcube Research 3929 | -8/Scraptown | Visited Abandonware Association 3959 | -8/Scraptown | Visited Junk Repository 3991 | -8/Scraptown | Visited Cartography Club 4177 | -8/Scraptown | Scanned Subdweller tech in exchange for log data 4180 | -8/Scraptown | Learned location of 2 exits from Research 4181 | -8/Scraptown | Learned location of 1 exit from Factory 4183 | -8/Scraptown | Learned Factory garrison access intel 4185 | -8/Scraptown | Learned 12 Research zone layouts 4186 | -8/Scraptown | Learned location of Warlord (-5) 4347 | -8/Scraptown | Delivered Scrap Shield to a Scientist 4379 | -8/Scraptown | Found DCF Scrap (29 items) 4425 | -8/Scraptown | Learned abandonware demo "POISON.EXE" 4479 | -8/Scraptown | Found Deep Structural Scanner 4492 | -8/Scraptown | Learned location of Proximity Caves (-4) 4492 | -8/Scraptown | Learned location of Testing (-2) 4492 | -8/Scraptown | Learned 8 Materials zone layouts 4492 | -8/Scraptown | Learned 16 Factory zone layouts 4492 | -8/Scraptown | Learned 12 Research zone layouts 4492 | -8/Scraptown | Learned 4 Mines zone layouts 4492 | -8/Scraptown | Learned 12 Upper Caves zone layouts 4492 | -8/Scraptown | Learned 24 Upper Caves zone layouts 4492 | -8/Scraptown | Learned 4 Hub_04(d) zone layouts 4492 | -8/Scraptown | Learned 4 Armory zone layouts 4492 | -8/Scraptown | Learned Materials emergency access door positions 4492 | -8/Scraptown | Learned location of 2 exits from Factory 4492 | -8/Scraptown | Learned location of 3 exits from Upper Caves 4492 | -8/Scraptown | Identified exit to Factory 4578 | -8/Scraptown | Heard Great Nut preacher, LISTEN AND RECITE! 4821 | -8/Scraptown | Found Lrg. Botcube 4897 | -8/Scraptown | Found DRS Beacon 4936 | -8/Scraptown | Found Scrapoid Pod 6178 | -8/Scraptown | Visited Symbiants 6277 | -8/Scraptown | Visited The Evicted 6324 | -8/Scraptown | Visited Red Mages 6806 | -8/Scraptown | Found Scrap Suit 6971 | -8/Scraptown | Met Optimus 6971 | -8/Scraptown | Accepted into 0bPrime 7104 | -8/Scraptown | Discovered exit to Factory (range 3) 7111 | -8/Scraptown | Entered Factory 7111 | -6/Factory | Evolved 8 slots: Power x1, Utility x6, Weapon x1 7112 | -6/Factory | Identified exit to Factory 7112 | -6/Factory | Identified exit to Lower Caves 7114 | -6/Factory | Loaded intel: 4 garrison access locations 7393 | -6/Factory | Loaded intel: 8 recycling unit locations 7467 | -6/Factory | Scrapoids reinforcements arrived? 7704 | -6/Factory | Learned location of Protoforge (-3) 7867 | -6/Factory | Entered Lower Caves 7867 | -6/Lower Caves | Accompanied by 1 ally 7869 | -6/Lower Caves | UFD Scientist delivered a prototype 7883 | -6/Lower Caves | Found Prototype Protection 7889 | -6/Lower Caves | Attracted the attention of an 0b10 checkpoint 8177 | -6/Lower Caves | Build established: Derelict-Skirmisher 8352 | -6/Lower Caves | Entered an active Warlord outpost 8401 | -6/Lower Caves | Scrapoid Pod released 06L10-D (x5) 8451 | -6/Lower Caves | A Commander dispatched an escort 8482 | -6/Lower Caves | Learned Armory emergency access door positions 8482 | -6/Lower Caves | Learned Extension garrison access intel 8704 | -6/Lower Caves | Build established: Derelict-Tank 8750 | -6/Lower Caves | Discovered new exit (range 5) 8762 | -6/Lower Caves | Entered another Lower Caves area 8762 | -6/Lower Caves | Accompanied by 7 allies 8763 | -6/Lower Caves | Commander's escort returned to base 8763 | -6/Lower Caves | Commander's escort returned to base 9024 | -6/Lower Caves | Encountered a Warlord checkpoint 9052 | -6/Lower Caves | Spotted B-75 Beast 9072 | -6/Lower Caves | Destroyed B-75 Beast 9238 | -6/Lower Caves | Found Scrap Suit 9350 | -6/Lower Caves | Discovered new exit (range 6) 9374 | -6/Lower Caves | Entered Data Miner 9374 | -6/Data Miner | Accompanied by 2 allies 9376 | -6/Data Miner | Discovered new exit (range 6) 9397 | -6/Data Miner | Met Data Miner 9418 | -6/Data Miner | Learned location of Section 7 (-3) 9418 | -6/Data Miner | Acquired the access code to Warlord's prototype stash 9438 | -6/Data Miner | Received God Mode back door access code from Data Miner 9484 | -6/Data Miner | Entered Proximity Caves 9484 | -5/Proximity Caves | Accompanied by 2 allies 9497 | -5/Proximity Caves | Attracted the attention of an 0b10 checkpoint 9759 | -5/Proximity Caves | Build established: Scavenger-Scrapper 9834 | -5/Proximity Caves | Discovered exit to Factory (range 5) 9876 | -5/Proximity Caves | Entered Factory 9876 | -5/Factory | Accompanied by 2 allies 9876 | -5/Factory | Evolved 2 slots: Utility x2 9877 | -5/Factory | Identified exit to Upper Caves 9878 | -5/Factory | Loaded intel: 3 garrison access locations 9985 | -5/Factory | Identified exit to Extension 10014 | -5/Factory | Loaded intel: 8 recycling unit locations 10561 | -5/Factory | Entered Extension 10613 | -5/Extension | Rescued a captive Derelict 10614 | -5/Extension | Rescued a captive Derelict 10910 | -5/Extension | Rescued a captive Derelict 10941 | -5/Extension | Rescued A7 11294 | -5/Extension | Spotted B-75 Beast 11308 | -5/Extension | Destroyed B-75 Beast 11329 | -5/Extension | Spotted B-75 Beast 11334 | -5/Extension | Destroyed B-75 Beast 11354 | -5/Extension | Lost 5 allies 11598 | -5/Extension | Rescued a captive Derelict 11616 | -5/Extension | Rescued a captive Derelict 11617 | -5/Extension | Rescued a captive Derelict 11648 | -5/Extension | Rescued a captive Derelict 11666 | -5/Extension | Rescued a captive Derelict 11666 | -5/Extension | Rescued a captive Derelict 11730 | -5/Extension | Rescued a captive Derelict 11853 | -5/Extension | Discovered new exit (range 10) 11854 | -5/Extension | Discovered new exit (range 6) 12037 | -5/Extension | Build established: Commander-Gunner 12042 | -5/Extension | Entered Cetus 12042 | -5/Cetus | Accompanied by 19 allies (A7) 12047 | -5/Cetus | Acquired a Cetus Manufacturing Module code from A7 12057 | -5/Cetus | Spotted Cetus Guard 12065 | -5/Cetus | Destroyed Cetus Guard 12065 | -5/Cetus | Spotted Cetus Guard 12068 | -5/Cetus | Spotted Cetus Guard 12071 | -5/Cetus | Allies destroyed Cetus Guard 12074 | -5/Cetus | Allies destroyed Cetus Guard 12419 | -5/Cetus | Lrg. Botcube activated 12441 | -5/Cetus | Lrg. Botcube completed mutation into treaded form, armed with 4 guns. 12545 | -5/Cetus | Started Cetus Manufacturing Module 12566 | -5/Cetus | Discovered new exit (range 15) 12570 | -5/Cetus | Manufactured an Enhanced Grunt 12590 | -5/Cetus | Spotted Cetus Guard 12591 | -5/Cetus | Spotted Cetus Guard 12593 | -5/Cetus | Spotted Cetus Guard 12594 | -5/Cetus | Spotted Cetus Guard 12595 | -5/Cetus | Manufactured an Enhanced Grunt 12598 | -5/Cetus | Allies destroyed Cetus Guard 12605 | -5/Cetus | Destroyed Cetus Guard 12605 | -5/Cetus | Destroyed Cetus Guard 12613 | -5/Cetus | Allies destroyed Cetus Guard 12618 | -5/Cetus | Discovered new exit (range 16) 12620 | -5/Cetus | Manufactured an Enhanced Grunt 12625 | -5/Cetus | Met Revision 17 12645 | -5/Cetus | Manufactured an Enhanced Grunt 12670 | -5/Cetus | Manufactured an Enhanced Grunt 12792 | -5/Cetus | Security sweep announced 12812 | -5/Cetus | Entered Archives 12812 | -5/Archives | Accompanied by 20 allies (A7) 12853 | -5/Archives | Discovered new exit (range 16) 12881 | -5/Archives | Discovered new exit (range 16) 12962 | -5/Archives | Discovered new exit (range 15) 13382 | -5/Archives | Entered Hub_04(d) 13382 | -5/Hub_04(d) | Accompanied by 17 allies 13382 | -5/Hub_04(d) | Discovered new exit (range 10) 13541 | -5/Hub_04(d) | Discovered new exit (range 15) 13581 | -5/Hub_04(d) | Lost 4 allies 13711 | -5/Hub_04(d) | Found Prototype Launcher 13711 | -5/Hub_04(d) | Identified Tesla Bomb Launcher 13811 | -5/Hub_04(d) | Build established: Scavenger-Gunner 13884 | -5/Hub_04(d) | Network Hub disabled 13908 | -5/Hub_04(d) | Spotted Lightning 13915 | -5/Hub_04(d) | Spotted Lightning 13920 | -5/Hub_04(d) | Spotted Lightning 13939 | -5/Hub_04(d) | Allies destroyed Lightning 13943 | -5/Hub_04(d) | Allies destroyed Lightning 13947 | -5/Hub_04(d) | Allies destroyed Lightning 13965 | -5/Hub_04(d) | Lost 8 allies 13965 | -5/Hub_04(d) | Found Prototype Device 13965 | -5/Hub_04(d) | Identified Exp. EM Shield 13980 | -5/Hub_04(d) | Found Prototype Device 13980 | -5/Hub_04(d) | Identified Exp. Phase Shifter 13982 | -5/Hub_04(d) | First assault squad dispatched 14001 | -5/Hub_04(d) | Incoming assault squad redirected 14009 | -5/Hub_04(d) | Incoming assault squad redirected 14022 | -5/Hub_04(d) | Entered Factory 14022 | -4/Factory | Accompanied by 2 allies 14022 | -4/Factory | Evolved 2 slots: Utility x1, Weapon x1 14023 | -4/Factory | Identified exit to Research 14023 | -4/Factory | Identified exit to Upper Caves 14096 | -4/Factory | Scrapoid reinforcements arrived 14333 | -4/Factory | Allied Derelicts emerged from ambush trap array 14388 | -4/Factory | Scrapoids reinforcements arrived? 14426 | -4/Factory | Found Scrap Suit 14534 | -4/Factory | Loaded intel: 6 recycling unit locations 14589 | -4/Factory | Found Scrap Suit 14612 | -4/Factory | Lost 4 allies 14725 | -4/Factory | Lost 3 allies 14799 | -4/Factory | Lost 4 allies 14887 | -4/Factory | Incoming investigation squad redirected 15022 | -4/Factory | First assault squad dispatched 15049 | -4/Factory | Incoming assault squad redirected 15072 | -4/Factory | Spotted B-86 Titan 15079 | -4/Factory | Sucked down chute 15079 | -4/Factory | Entered Waste 15094 | -4/Waste | EMP discharged 15094 | -4/Waste | System corruption reached 10% 15104 | -4/Waste | 1 allies followed down the chute 15108 | -4/Waste | Spotted C-40 Crusher 15108 | -4/Waste | Spotted C-40 Crusher 15115 | -4/Waste | Destroyed C-40 Crusher 15142 | -4/Waste | Destroyed C-40 Crusher 15157 | -4/Waste | Spotted C-40 Crusher 15161 | -4/Waste | Spotted C-40 Crusher 15194 | -4/Waste | EMP discharged 15210 | -4/Waste | Spotted C-40 Crusher 15215 | -4/Waste | Spotted C-40 Crusher 15225 | -4/Waste | Crushed by falling debris 15235 | -4/Waste | Crushed by Compactor (1 part destroyed, 2 dropped) 15253 | -4/Waste | Discovered new exit (range 12) 15270 | -4/Waste | Entered Factory 15484 | -4/Factory | Spotted B-86 Titan 15520 | -4/Factory | First assault squad dispatched 15542 | -4/Factory | Scraphulk reinforcements arrived? 15547 | -4/Factory | Incoming assault squad redirected 15579 | -4/Factory | Allies destroyed B-86 Titan 15674 | -4/Factory | Released all parts (13) 15686 | -4/Factory | Core integrity fell below 50% 15705 | -4/Factory | Lost 3 parts (1p1u1w) 15750 | -4/Factory | Core integrity fell below 20% 15754 | -4/Factory | Destroyed by G-73 Enforcer with Heavy Laser Last Messages --------------- 15680_ Penetrated by Slug. 15681_ U-05 Engineer lays Concrete. 15681_ U-05 Engineer builds a Wall. 15682_ U-05 Engineer lays Concrete. 15683_ System corrupted: Matter fused (-9). 15685_ Penetrated by Slug. 15687_ Acquired 7 matter. 15698_ System corrupted: IFF burst signal emitted. 15716_ System corrupted: Matter fused (-5). 15720_ Penetrated by Slug. 15722_ K-01 Serf collects debris. 15723_ ALERT: Potential suspicious activity detected, Programmers report to Factory Zone 8Z. 15723_ Slug penetrates Wall. 15737_ U-05 Engineer lays Concrete. 15739_ O-16 Technician: "IFF HANDSHAKE FAILED. SECURING TERMINAL." 15740_ System corrupted: IFF burst signal emitted. 15745_ Penetrated by Slug. 15745_ Slug penetrates Wall. 15753_ Critical hit (Burn: +50). Map ----- +----------------------------------------------------+ | ???????????????????# # " # """ #??????? | | ???T???????????????# # " # """ #??????? | | ???????????????????# # " # """ #??????? | | ?????????????###???# # " # #??????? | | ???????????? ? ?# + " ##########??????? | | ????????"?"?" " " # # " #???????????????? | | #######?"?" " " " # # " #???????????????? | | #?"?" " " " # # " #???????????????? | | """"" #?"?" " " " # # #???????????????? | | """"" #?"?" " " " # # #???????????????? | | """"" # " " " " " # # #???????????????? | | """"" # " " " " " + # #???????????????? | | # " " " " " # #########???????????????? | | # " " " " " # #???????????????????????? | | #? # ###?????????????????????? | | #? # # #?????????????????????? | | ##+"################ # #?????????????????????? | | ^ ww # #?????????????????????? | | # ############??????????? | | " % # #??????????? | | =] # #??????????? | | % % % =] # " " " " " #??????????? | | % "#####+### # " " " " "????????????? | | # # # " " " " "????????????? | | + """ !# # " " " " "????????????? | | #### """ # @ " " " "?"????????????? | | ##?# """ #% # " " " "?"????????????? | | ???# # g # " " " "?"????????????? | | ???# """ # g # " " " "?"????????????? | | ???? """ # g # " " " "?"????????????? | | ???? """ # # ???????????????? | | ???? # g # ######???????????????? | | ######?###### h # ##????????????????????? | | #??????# # ??????????????????????? | | #??????# #???????????????????????? | | #??????# #???????????????????????? | | #??????# "" ###?????????????????????? | | ######## "" #?????????????????????? | | # #?????????????????????? | | # ###?????????????????????? | | + #???????????????????????? | | # #???????????????????????? | | # #???????????????????????? | | ###########"#########???????????????????????? | | #???????? ??????????????????????????????? | | #?????? ????????????????????????????? | | #????# ??????????????????????????? | | #????# """" """" #?????????????????????????? | | #????# """" """" #?????????????????????????? | | ?????# """" """" #?????????????????????????? | +----------------------------------------------------+ Best States ------------- Heat Dissipation 124 Energy Generation 57 Energy Capacity 600 Matter Stores 300 Matter Capacity 300 Sight Range 16 Robot Scan Range 15 Terrain Scan Density 10 Jamming Range 14 Power Amplification 30 Armor Coverage 800 Resistance: EM 75 Phase Shifting 20 Evasion (%) 60 Targeting Accuracy 5 Armor Integrity Analysis 40 Recoil Reduction 2 Offensive Hacking 23 Defensive Hacking 10 Item Schematics ----------------- Combat Drone Bay | -6/Data Miner | Free Lgt. Regenerative Plating | -6/Data Miner | Free Enh. Armored Leg | -6/Data Miner | Free Imp. Matter Compressor | -6/Data Miner | Free Kinetic Spear | -6/Data Miner | Free Imp. Force Field | -6/Data Miner | Free Field Propulsion Array | -6/Data Miner | Free Adv. System Restoration Module | -6/Data Miner | Free Matter Neutralizer | -6/Data Miner | Free HERF Cannon | -6/Data Miner | Free Adv. Target Analyzer | -6/Data Miner | Free Antigrav Array | -6/Data Miner | Free Hyp. Railgun | -6/Data Miner | Free Robot Schematics ------------------ B-60 Warrior | -6/Data Miner | Free M-22 Extractor | -6/Data Miner | Free L-41 Fighter | -6/Data Miner | Free R-10 Processor | -6/Data Miner | Free H-77 Assassin | -6/Data Miner | Free Fabricated ------------ Nothing Repaired ---------- Nothing Alien Tech Used ----------------- None Achievements -------------- None Challenges ------------ None Game ------ Seed CoolantTripodSword Manual? 0 Play Time 01:46:22 Cumulative 331.1 hours Start 2025.06.28 @ 09:46:43 End 2025.06.28 @ 16:03:41 Sessions 3 Manual Loads 0 Difficulty Rogue Special Mode None Game No. 318 Rogue 282 Adventurer 36 Explorer 0 Win Type - Total 11 Types 4/0/7/0/0/0/0/0/0/0 Lore% 69 Gallery% 81 Achievement% 74 Wizard Run 0 Options --------- Layout 0 ASCII 0 Keyboard 0 Movement Mouse Keybinds 0 Fullscreen 1 Font 18/SmallcapsGlow Map View 76x50 Zoom Use 0% Tactical HUD 1 Map Filters NONE Filters NONE Steam 1 RUN: 7b8c6131-1931-43c4-aa41-7262999d16f7